bitfinex/quotes_SOLUSD_20241116
["timestamp","ask_amount","ask_price","bid_price","bid_amount"]
[1731782573519,23.776884,216.22,216.17,6.4892]
[1731782574116,4.6247,216.23,216.17,6.4892]
[1731782577018,23.776884,216.26,216.17,11.1151]
[1731782578211,4.6242,216.25,216.17,11.1151]
[1731782579929,27.7,216.28,216.17,11.1151]
[1731782580113,4.6238,216.27,216.17,11.1151]
[1731782580427,165.5238,216.27,216.17,22.68]
[1731782582729,160.9,216.27,216.19,13.47410777]
[1731782582927,4.6237,216.28,216.2,22.93000777]
[1731782583134,4.6237,216.28,216.2,15.7254]
[1731782584032,160.9,216.27,216.2,15.7254]
[1731782585613,4.624,216.26,216.2,15.7254]
[1731782588132,160.9,216.25,216.2,15.7254]
[1731782589804,4.6244,216.24,216.2,15.7254]
[1731782592826,4.6244,216.24,216.19,6.2695]
[1731782593412,16.1856,216.24,216.19,6.2695]
[1731782593710,184.676884,216.23,216.19,6.2695]
[1731782594720,4.6249,216.22,216.19,6.2695]
[1731782596919,160.9,216.21,216.19,6.2695]
[1731782597323,4.6253,216.2,216.19,6.2695]
[1731782603242,16.1879,216.21,216.14,6.6063]
[1731782603534,160.9,216.2,216.14,6.6063]
[1731782604232,23.776884,216.19,216.14,6.6063]
[1731782605228,165.5257,216.18,216.14,6.6063]
[1731782607550,27.7,216.17,216.14,6.6063]
[1731782608352,4.6262,216.16,216.14,6.6063]
[1731782608551,165.5262,216.16,216.14,6.6063]
[1731782611747,160.9,216.15,216.14,6.6063]
[1731782616451,165.5264,216.15,216.14,6.6063]
[1731782617747,4.6264,216.15,216.14,6.6063]
[1731782623348,4.6264,216.15,216.08,16.3101]
[1731782623539,165.5264,216.15,216.09,6.6025]
[1731782626763,212.376884,216.14,216.09,6.6025]
[1731782626940,160.9,216.14,216.09,6.6025]
[1731782628241,4.6268,216.13,216.09,6.6025]
[1731782630347,184.676884,216.12,215.98,11.5749]
[1731782630554,160.9,216.11,216.0,7.20460777]
[1731782630944,160.9,216.11,216.02,6.6025]
[1731782631146,160.9,216.11,216.02,13.80710777]
[1731782632141,4.6274,216.1,216.02,11.2316]
[1731782632649,4.6274,216.1,216.02,10.7316]
[1731782633251,4.6274,216.1,216.02,22.3046]
[1731782635442,28.403284,216.15,216.02,22.3046]
[1731782637745,27.7,216.14,216.02,22.3046]
[1731782637950,4.6268,216.13,216.02,22.3046]
[1731782638972,165.5268,216.13,216.02,22.3046]
[1731782639142,165.5268,216.13,216.02,29.50920777]
[1731782640978,165.5268,216.13,216.02,22.3046]
[1731782643179,160.9,216.16,216.03,7.20460777]
[1731782643471,7.23993808,216.19,216.02,22.3046]
[1731782643472,165.5264,216.15,216.05,7.20460777]
[1731782643673,165.5264,216.15,216.06,28.65590777]
[1731782644573,165.5264,216.15,216.07,4.6281]
[1731782646074,4.6261,216.17,216.07,23.40300777]
[1731782646272,4.6261,216.17,216.1,6.2605]
[1731782647495,28.401784,216.22,216.1,10.8879]
[1731782647780,160.9,216.21,216.1,10.8879]
[1731782647977,160.9,216.21,216.12,7.20460777]
[1731782649284,4.6253,216.2,216.12,7.20460777]
[1731782651259,4.6253,216.2,216.1,10.8879]
[1731782651491,4.6253,216.2,216.1,18.09250777]
[1731782652691,4.6253,216.2,216.1,10.8879]
[1731782652985,4.6253,216.2,216.1,18.09250777]
[1731782653190,165.5253,216.2,216.1,10.8879]
[1731782653367,165.5253,216.2,216.11,7.20460777]
[1731782653765,165.5253,216.2,216.11,11.83180777]
[1731782653985,165.5253,216.2,216.11,4.6272]
[1731782654202,165.5253,216.2,216.16,7.20460777]
[1731782654366,4.6253,216.2,216.16,7.20460777]
[1731782655090,4.6253,216.2,216.11,4.6272]
[1731782655396,4.6253,216.2,216.16,7.20460777]
[1731782656087,4.6253,216.2,216.11,4.6272]
[1731782656267,4.6253,216.2,216.16,7.20460777]
[1731782657100,4.6253,216.2,216.17,7.20460777]
[1731782658085,4.6253,216.2,216.12,4.627]
[1731782658280,4.6253,216.2,216.16,7.20460777]
[1731782659186,4.6253,216.2,216.17,7.20460777]
[1731782660464,160.9,216.21,216.1,6.2605]
[1731782660667,4.6247,216.23,216.19,7.20460777]
[1731782662668,4.6247,216.23,216.2,7.20460777]
[1731782663087,160.9,216.25,216.22,7.20460777]
[1731782663286,43.43962852,216.28,216.18,38.6241]
[1731782663287,4.6237,216.28,216.18,38.6241]
[1731782663496,4.6237,216.28,216.25,7.20460777]
[1731782663683,168.13993808,216.31,216.25,7.20460777]
[1731782663883,4.6232,216.3,216.25,7.20460777]
[1731782664287,4.6232,216.3,216.26,7.20460777]
[1731782664484,4.6232,216.3,216.25,7.20460777]
[1731782664992,4.6232,216.3,216.21,4.625]
[1731782665201,4.6232,216.3,216.25,7.20460777]
[1731782665370,4.6232,216.3,216.26,7.20460777]
[1731782665573,7.23993808,216.33,216.29,7.20460777]
[1731782665781,4.6226,216.33,216.29,7.20460777]
[1731782666705,4.6226,216.33,216.24,6.5053]
[1731782666993,4.6226,216.33,216.3,7.20460777]
[1731782667994,160.9,216.41,216.32,7.20460777]
[1731782668186,4.6208,216.41,216.35,7.20460777]
[1731782668384,4.6208,216.41,216.31,6.5053]
[1731782668571,4.6208,216.41,216.34,7.20460777]
[1731782669777,4.6208,216.41,216.36,7.20460777]
[1731782672872,4.6208,216.41,216.31,11.128]
[1731782673077,165.5208,216.41,216.35,7.20460777]
[1731782673289,165.5208,216.41,216.31,11.128]
[1731782673712,165.5208,216.41,216.35,7.20460777]
[1731782675607,165.5208,216.41,216.31,11.128]
[1731782675815,165.5208,216.41,216.35,7.20460777]
[1731782677203,165.5208,216.41,216.31,11.128]
[1731782677616,165.5208,216.41,216.36,7.20460777]
[1731782679806,165.5208,216.41,216.31,11.128]
[1731782680110,23.776884,216.4,216.33,7.20460777]
[1731782680686,23.776884,216.4,216.32,7.20460777]
[1731782682106,4.6212,216.39,216.31,6.5053]
[1731782682315,4.6212,216.39,216.31,13.70990777]
[1731782682681,160.9,216.38,216.31,13.70990777]
[1731782682881,160.9,216.38,216.31,6.5053]
[1731782683087,4.6212,216.39,216.31,13.70990777]
[1731782683412,212.376884,216.38,216.31,6.5053]
[1731782683589,212.376884,216.38,216.27,7.20460777]
[1731782683789,23.776884,216.36,216.27,7.20460777]
[1731782684103,4.6221,216.35,216.27,7.20460777]
[1731782684509,23.776884,216.34,216.26,6.3204]
[1731782684707,23.776884,216.34,216.26,13.52500777]
[1731782685101,23.776884,216.34,216.27,7.20460777]
[1731782685409,23.776884,216.34,216.29,7.20460777]
[1731782685592,23.776884,216.34,216.28,7.20460777]
[1731782686307,4.6225,216.33,216.26,6.3204]
[1731782686614,160.9,216.32,216.27,7.20460777]
[1731782687188,4.6229,216.31,216.26,6.3204]
[1731782687595,4.6229,216.31,216.26,13.52500777]
[1731782687798,165.5229,216.31,216.26,13.52500777]
[1731782690190,165.5229,216.31,216.26,6.3204]
[1731782691787,165.5229,216.31,216.27,7.20460777]
[1731782695895,160.9,216.31,216.26,10.9443]
[1731782696095,165.523,216.31,216.29,7.20460777]
[1731782696899,165.523,216.31,216.27,7.20460777]
[1731782699626,165.523,216.31,216.26,13.52500777]
[1731782700508,165.523,216.31,216.28,7.20460777]
[1731782700703,4.623,216.31,216.28,7.20460777]
[1731782701603,4.6223,216.34,216.28,7.20460777]
[1731782704411,4.622,216.36,216.27,4.6237]
[1731782704722,4.622,216.36,216.33,7.20460777]
[1731782705443,160.9,216.39,216.33,7.20460777]
[1731782705611,4.6214,216.38,216.33,7.20460777]
[1731782706007,4.6211,216.4,216.35,7.20460777]
[1731782706626,4.6211,216.4,216.33,6.6231]
[1731782706929,4.6211,216.4,216.33,13.82770777]
[1731782707929,43.8737,216.4,216.33,6.6231]
[1731782708118,23.776884,216.39,216.33,6.6231]
[1731782708322,23.776884,216.39,216.33,13.82770777]
[1731782709331,4.6214,216.38,216.33,13.82770777]
[1731782709507,160.9,216.37,216.33,13.82770777]
[1731782711122,165.5217,216.37,216.33,13.82770777]
[1731782713243,165.5217,216.37,216.33,6.6231]
[1731782714509,165.5217,216.37,216.33,13.82770777]
[1731782714917,165.5217,216.37,216.33,6.6231]
[1731782715518,11.5524,216.41,216.33,6.6231]
[1731782715519,4.621,216.4,216.33,6.6231]
[1731782715747,23.776884,216.38,216.33,6.6231]
[1731782716433,23.776884,216.36,216.33,6.6231]
[1731782716740,23.776884,216.36,216.29,7.20460777]
[1731782717640,23.776884,216.34,216.28,6.5996]
[1731782717940,160.9,216.33,216.28,6.5996]
[1731782719247,160.9,216.33,216.3,7.20460777]
[1731782719623,4.6227,216.32,216.29,7.20460777]
[1731782720329,4.6227,216.32,216.28,13.80420777]
[1731782721554,4.6227,216.32,216.3,7.20460777]
[1731782721720,160.9,216.34,216.28,22.7822]
[1731782721919,160.9,216.34,216.33,7.20460777]
[1731782722139,4.6221,216.35,216.33,7.20460777]
[1731782722441,4.6221,216.35,216.28,22.7822]
[1731782722616,4.6221,216.35,216.32,7.20460777]
[1731782722823,4.6221,216.35,216.28,22.7822]
[1731782723031,4.6221,216.35,216.31,7.20460777]
[1731782724143,4.6221,216.35,216.28,18.1586]
[1731782724446,4.6221,216.35,216.3,7.20460777]
[1731782725426,4.6221,216.35,216.28,6.5996]
[1731782725741,4.6221,216.35,216.29,7.20460777]
[1731782727331,165.5221,216.35,216.29,7.20460777]
[1731782727940,165.5221,216.35,216.31,7.20460777]
[1731782729628,165.5221,216.35,216.28,6.5996]
[1731782729926,23.776884,216.34,216.28,6.5996]
[1731782730238,23.776884,216.34,216.3,7.20460777]
[1731782730548,23.776884,216.34,216.31,7.20460777]
[1731782731348,4.6223,216.34,216.31,7.20460777]
[1731782731580,4.6223,216.34,216.32,7.20460777]
[1731782732959,4.6223,216.34,216.33,7.20460777]
[1731782733457,4.6223,216.34,216.28,11.2231]
[1731782733629,160.9,216.37,216.33,7.20460777]
[1731782733829,4.6217,216.37,216.33,7.20460777]
[1731782734835,165.5217,216.37,216.33,7.20460777]
[1731782735665,165.5217,216.37,216.28,11.2231]
[1731782735958,4.6217,216.37,216.33,7.20460777]
[1731782736141,165.5217,216.37,216.33,7.20460777]
[1731782737451,165.5217,216.37,216.28,11.2231]
[1731782737653,4.6217,216.37,216.33,7.20460777]
[1731782737858,165.5217,216.37,216.33,7.20460777]
[1731782740646,165.5217,216.37,216.3,4.6231]
[1731782740843,165.5217,216.37,216.34,7.20460777]
[1731782742055,165.5217,216.37,216.36,7.20460777]
[1731782742229,4.6208,216.41,216.36,7.20460777]
[1731782742428,4.6208,216.41,216.39,7.20460777]
[1731782744850,4.6208,216.41,216.37,7.20460777]
[1731782745750,4.6206,216.42,216.37,7.20460777]
[1731782748062,160.9,216.45,216.37,7.20460777]
[1731782748363,4.6199,216.46,216.41,7.20460777]
[1731782748566,4.6199,216.46,216.42,6.6058]
[1731782750167,4.6199,216.46,216.43,7.20460777]
[1731782750651,4.6199,216.46,216.42,6.6058]
[1731782750855,4.6199,216.46,216.42,13.81040777]
[1731782752659,85.816278,216.47,216.44,7.20460777]
[1731782756669,85.816278,216.47,216.46,7.20460777]
[1731782758055,85.816278,216.47,216.46,11.82430777]
[1731782759745,85.816278,216.47,216.43,16.1714]
[1731782759943,85.816278,216.47,216.44,7.20460777]
[1731782760955,85.816278,216.47,216.44,11.82470777]
[1731782761596,85.816278,216.47,216.46,7.20460777]
[1731782762754,85.816278,216.47,216.46,8.10795727]
[1731782763157,85.816278,216.47,216.46,12.72765727]
[1731782768881,85.816278,216.47,216.46,4.6197]
[1731782769054,85.816278,216.47,216.46,12.72765727]
[1731782771089,85.816278,216.47,216.46,8.10795727]
[1731782772484,85.816278,216.47,216.44,11.5505]
[1731782772665,85.816278,216.47,216.46,8.10795727]
[1731782773484,85.816278,216.47,216.46,12.72765727]
[1731782773659,0.2,216.65,216.51,0.1]
[1731782773660,15.272,216.64,216.51,0.1]
[1731782773984,15.8136493,216.7,216.55,0.1]
[1731782774159,15.8136493,216.7,216.56,0.1]
[1731782774360,15.8136493,216.7,216.55,0.1]
[1731782774670,15.8136493,216.7,216.67,8.10795727]
[1731782776483,15.8136493,216.7,216.63,4.6159]
[1731782776774,15.8136493,216.7,216.67,8.10795727]
[1731782776987,15.8136493,216.7,216.63,4.6159]
[1731782777364,15.8136493,216.7,216.67,8.10795727]
[1731782777681,23.776884,216.69,216.62,11.5408]
[1731782778184,23.776884,216.69,216.57,16.1604]
[1731782778365,23.776884,216.67,216.59,8.10795727]
[1731782778567,23.776884,216.67,216.6,8.10795727]
[1731782779078,28.392184,216.67,216.6,8.10795727]
[1731782779286,160.9,216.68,216.63,8.10795727]
[1731782779461,23.776884,216.68,216.63,8.10795727]
[1731782780381,28.391984,216.68,216.59,11.5425]
[1731782780884,28.391984,216.68,216.62,8.10795727]
[1731782782676,28.391984,216.68,216.63,8.10795727]
[1731782782870,28.391984,216.68,216.62,8.10795727]
[1731782783854,28.391984,216.68,216.59,11.5425]
[1731782784061,28.391984,216.68,216.59,19.65045727]
[1731782784970,28.391984,216.68,216.56,11.0549]
[1731782785170,23.776884,216.66,216.57,8.10795727]
[1731782785376,23.776884,216.64,216.55,8.10795727]
[1731782785885,23.776884,216.62,216.54,11.5446]
[1731782786062,160.9,216.61,216.52,4.6183]
[1731782786257,160.9,216.61,216.51,6.4374]
[1731782786258,160.9,216.6,216.51,6.4374]
[1731782786463,23.776884,216.59,216.51,6.4374]
[1731782786682,23.776884,216.59,216.51,14.54535727]
[1731782786863,23.776884,216.59,216.52,8.10795727]
[1731782788163,23.776884,216.59,216.51,11.056]
[1731782788371,4.6172,216.58,216.52,8.10795727]
[1731782789576,4.6172,216.58,216.51,19.16395727]
[1731782793080,4.6172,216.58,216.51,11.056]
[1731782796179,4.6172,216.58,216.46,16.169]
[1731782796180,184.676884,216.57,216.46,16.169]
[1731782796385,160.9,216.56,216.47,8.10795727]
[1731782796801,8.10767878,216.54,216.47,8.10767878]
[1731782797170,160.9,216.56,216.49,8.10767878]
[1731782797370,160.9,216.56,216.51,8.10767878]
[1731782797597,8.10767878,216.58,216.51,8.10767878]
[1731782798107,8.10767878,216.57,216.5,8.10767878]
[1731782798272,8.10767878,216.57,216.5,12.72647878]
[1731782798273,12.72507878,216.57,216.5,12.72647878]
[1731782799976,8.10767878,216.56,216.49,8.10767878]
[1731782800487,8.10767878,216.55,216.45,16.17]
[1731782800795,8.10767878,216.55,216.48,8.10767878]
[1731782800993,8.10767878,216.55,216.49,4.6191]
[1731782802408,160.9,216.6,216.49,4.6191]
[1731782802698,8.10767878,216.55,216.49,4.6191]
[1731782803606,8.10767878,216.55,216.49,16.1669]
[1731782808089,8.10767878,216.55,216.47,8.10767878]
[1731782808518,30.0,216.52,216.47,8.10767878]
[1731782809409,30.0,216.52,216.48,16.1677]
[1731782809608,8.10767878,216.55,216.48,16.1677]
[1731782810284,8.10687488,216.55,216.48,11.5484]
[1731782811401,8.10687488,216.55,216.48,16.1677]
[1731782811594,8.10687488,216.55,216.48,24.27457488]
[1731782812290,8.10687488,216.54,216.48,16.1677]
[1731782814392,8.10687488,216.55,216.48,16.1677]
[1731782815199,8.10687488,216.55,216.48,24.27457488]
[1731782816605,160.9,216.6,216.49,20.0]
[1731782816808,8.10687488,216.59,216.49,42.8152]
[1731782817014,8.10687488,216.59,216.51,8.10687488]
[1731782817319,8.10687488,216.58,216.51,8.10687488]
[1731782818013,8.10687488,216.57,216.5,16.1662]
[1731782818383,8.10687488,216.55,216.5,16.1662]
[1731782818600,160.9,216.61,216.49,22.8152]
[1731782818915,16.1572,216.62,216.49,6.4152]
[1731782818916,8.10687488,216.5,216.49,6.4152]
[1731782819096,8.10687488,216.51,216.49,6.4152]
[1731782819290,8.10687488,216.5,216.49,6.4152]
[1731782820499,8.1103257,216.5,216.49,6.4152]
[1731782821101,8.1103257,216.5,216.45,11.5496]
[1731782821289,8.1103257,216.48,216.45,16.1696]
[1731782822703,8.1103257,216.49,216.45,16.1696]
[1731782822898,8.1103257,216.5,216.45,16.1696]
[1731782823109,8.1103257,216.52,216.45,24.2799257]
[1731782823406,4.6176,216.56,216.45,16.1696]
[1731782823612,8.1103257,216.51,216.45,16.1696]
[1731782826004,4.618,216.54,216.45,24.2799257]
[1731782826209,8.1103257,216.52,216.45,24.2799257]
[1731782827396,8.1103257,216.51,216.45,16.1696]
[1731782828116,8.1103257,216.5,216.45,16.1696]
[1731782828300,8.1103257,216.47,216.44,6.586]
[1731782828495,8.1103257,216.45,216.38,27.1559]
[1731782828694,160.9,216.52,216.38,27.1559]
[1731782828695,8.1103257,216.43,216.38,27.1559]
[1731782829806,8.1103257,216.42,216.38,27.1559]
[1731782830005,8.1103257,216.42,216.38,6.155]
[1731782830210,8.1103257,216.43,216.38,6.155]
[1731782833123,12.7307257,216.43,216.38,6.155]
[1731782833499,8.1103257,216.42,216.38,6.155]
[1731782835215,8.1103257,216.41,216.38,6.155]
[1731782836300,8.1103257,216.41,216.36,16.1761]
[1731782836710,8.1103257,216.4,216.36,16.1761]
[1731782837097,8.1103257,216.4,216.36,11.5543]
[1731782839207,8.1103257,216.39,216.36,11.5543]
[1731782841096,8.1103257,216.38,216.36,11.5543]
[1731782841717,8.1103257,216.37,216.34,4.6223]
[1731782843519,8.1103257,216.38,216.34,4.6223]
[1731782843912,8.1103257,216.39,216.34,4.6223]
[1731782844702,4.62,216.45,216.34,24.2884257]
[1731782844926,8.1103257,216.41,216.34,24.2884257]
[1731782845105,8.1103257,216.42,216.34,24.2884257]
[1731782845422,165.52,216.45,216.36,8.1103257]
[1731782845631,8.1103257,216.43,216.36,8.1103257]
[1731782846119,8.1103257,216.43,216.37,16.1759]
[1731782846499,165.52,216.45,216.37,24.2862257]
[1731782846701,8.1103257,216.44,216.37,24.2862257]
[1731782847902,23.776884,216.48,216.39,8.1103257]
[1731782848211,8.1103257,216.49,216.41,14.2156257]
[1731782848522,4.619,216.5,216.42,8.1103257]
[1731782848706,8.1103257,216.5,216.42,8.1103257]
[1731782849027,4.6187,216.51,216.42,8.1103257]
[1731782849218,8.1103257,216.51,216.44,8.1103257]
[1731782850417,8.1103257,216.51,216.45,4.62]
[1731782852926,8.1103257,216.51,216.44,8.1103257]
[1731782853132,4.6185,216.52,216.45,8.1103257]
[1731782854407,12.7288257,216.52,216.45,4.6199]
[1731782855925,8.1103257,216.51,216.43,19.6610257]
[1731782856342,8.1103257,216.49,216.43,11.5507]
[1731782858236,8.1103257,216.48,216.43,11.5507]
[1731782861231,160.9,216.53,216.41,6.1053]
[1731782861232,8.1103257,216.46,216.41,6.1053]
[1731782863038,12.7301257,216.46,216.41,6.1053]
[1731782863616,8.1103257,216.43,216.39,11.553]
[1731782863818,8.1103257,216.42,216.39,11.553]
[1731782864229,8.1103257,216.42,216.36,4.6218]
[1731782864743,8.1103257,216.42,216.36,16.1766]
[1731782866121,4.6202,216.44,216.36,16.1766]
[1731782866443,8.1103257,216.37,216.32,22.4726]
[1731782866740,8.1103257,216.38,216.32,22.4726]
[1731782867226,8.1103257,216.35,216.32,17.85]
[1731782867623,8.1103257,216.36,216.32,17.85]
[1731782868137,8.1103257,216.37,216.32,17.85]
[1731782868461,8.1103257,216.38,216.32,22.4727]
[1731782868942,4.6205,216.43,216.36,8.1103257]
[1731782869245,8.1103257,216.43,216.36,8.1103257]
[1731782869414,12.7306257,216.44,216.32,22.4727]
[1731782869620,12.7306257,216.44,216.36,8.1103257]
[1731782870442,12.7306257,216.44,216.36,12.7320257]
[1731782871248,12.7306257,216.44,216.36,4.6217]
[1731782871749,12.7306257,216.44,216.36,12.7320257]
[1731782873837,12.7306257,216.44,216.35,11.5548]
[1731782874041,12.7306257,216.44,216.36,8.1103257]
[1731782874437,8.1103257,216.43,216.36,8.1103257]
[1731782874836,8.1103257,216.43,216.36,12.7321257]
[1731782875036,12.7307257,216.43,216.35,11.5548]
[1731782875243,12.7307257,216.43,216.32,6.2932]
[1731782875244,8.1103257,216.38,216.32,6.2932]
[1731782875749,8.1103257,216.37,216.32,6.2932]
[1731782875950,23.776884,216.41,216.32,6.2932]
[1731782876171,160.9,216.42,216.36,8.1103257]
[1731782876327,169.0103257,216.42,216.35,8.1103257]
[1731782876734,8.1103257,216.41,216.33,8.1103257]
[1731782876933,8.1103257,216.41,216.34,4.6223]
[1731782877343,8.1103257,216.39,216.32,22.4727]
[1731782877553,8.1103257,216.38,216.32,22.4727]
[1731782878253,8.1103257,216.38,216.32,17.8501]
[1731782878458,8.1103257,216.37,216.32,6.2932]
[1731782879455,12.7320257,216.37,216.32,6.2932]
[1731782879834,8.1103257,216.36,216.32,6.2932]
[1731782880640,8.1103257,216.38,216.32,6.2932]
[1731782881643,12.7315257,216.39,216.32,6.2932]
[1731782881843,4.6212,216.39,216.32,19.0261257]
[1731782882631,173.6314257,216.4,216.32,19.0261257]
[1731782883649,173.6314257,216.4,216.32,30.5830257]
[1731782884369,12.7314257,216.4,216.32,30.5830257]
[1731782884549,4.6204,216.43,216.35,8.1103257]
[1731782884750,4.6204,216.43,216.36,8.1103257]
[1731782885560,4.6204,216.43,216.38,8.1103257]
[1731782886074,12.7296257,216.48,216.4,14.5094257]
[1731782886564,8.1103257,216.47,216.4,6.3991]
[1731782886946,12.7296257,216.48,216.4,14.5094257]
[1731782887357,4.6193,216.48,216.41,8.1103257]
[1731782887557,15.2322,216.5,216.4,11.0201]
[1731782887558,4.619,216.5,216.43,8.1103257]
[1731782887866,12.7293257,216.5,216.42,8.1103257]
[1731782888240,8.1103257,216.49,216.42,8.1103257]
[1731782888463,12.7295257,216.49,216.42,8.1103257]
[1731782888960,12.7295257,216.49,216.41,12.7309257]
[1731782891368,8.1103257,216.5,216.42,8.1103257]
[1731782891872,8.1103257,216.5,216.42,12.7308257]
[1731782893166,4.6191,216.49,216.42,12.7308257]
[1731782893668,4.6188,216.51,216.45,8.1103257]
[1731782897555,4.6188,216.51,216.44,8.1103257]
[1731782897871,4.6188,216.51,216.44,12.7304257]
[1731782899770,8.1103257,216.51,216.44,12.7304257]
[1731782900149,8.1103257,216.5,216.42,24.2823257]
[1731782901070,12.7293257,216.5,216.42,16.172]
[1731782902251,8.1103257,216.48,216.42,11.5516]
[1731782902963,8.1103257,216.47,216.4,6.3991]
[1731782903177,8.1103257,216.45,216.4,6.3991]
[1731782903377,8.1103257,216.44,216.4,6.3991]
[1731782903968,8.1103257,216.43,216.4,6.3991]
[1731782904190,12.7304257,216.45,216.4,6.3991]
[1731782907157,8.1103257,216.44,216.4,6.3991]
[1731782909585,8.1103257,216.45,216.4,6.3991]
[1731782909783,8.1103257,216.48,216.41,8.1103257]
[1731782909960,4.6187,216.51,216.43,8.1103257]
[1731782909961,8.1103257,216.5,216.43,8.1103257]
[1731782910164,12.7290257,216.51,216.43,8.1103257]
[1731782910573,12.7290257,216.51,216.4,22.5726]
[1731782910774,8.1103257,216.5,216.43,8.1103257]
[1731782911357,8.1103257,216.5,216.44,4.6202]
[1731782912884,12.7290257,216.51,216.44,4.6202]
[1731782915089,8.1103257,216.5,216.44,4.6202]
[1731782915386,8.1103257,216.49,216.42,4.6204]
[1731782915592,8.1103257,216.48,216.42,4.6204]
[1731782915787,8.1103257,216.47,216.41,16.1729]
[1731782915990,8.1103257,216.46,216.41,11.5521]
[1731782916290,8.1103257,216.44,216.4,6.3991]
[1731782917969,12.7303257,216.45,216.4,6.3991]
[1731782918171,8.1103257,216.47,216.4,6.3991]
[1731782918482,12.7300257,216.47,216.4,22.5727]
[1731782919285,8.1103257,216.48,216.4,30.6830257]
[1731782919489,8.1103257,216.48,216.41,8.1103257]
[1731782920894,8.1103257,216.48,216.42,4.6206]
[1731782921075,8.1103257,216.47,216.42,4.6206]
[1731782922192,12.7296257,216.48,216.42,4.6206]
[1731782922589,8.1103257,216.47,216.42,4.6206]
[1731782924598,4.6193,216.48,216.42,4.6206]
[1731782924599,8.1103257,216.48,216.42,4.6206]
[1731782925785,8.1103257,216.46,216.42,4.6206]
[1731782925986,8.1103257,216.47,216.41,16.1729]
[1731782926776,8.1103257,216.45,216.41,11.5521]
[1731782927403,8.1103257,216.45,216.4,56.3991]
[1731782928308,12.7304257,216.45,216.4,56.3991]
[1731782928800,8.1103257,216.44,216.4,56.3991]
[1731782929003,8.1103257,216.43,216.4,56.3991]
[1731782929205,8.1103257,216.41,216.4,50.0]
[1731782936732,4.621,216.4,216.34,6.2223]
[1731782936897,8.1103257,216.38,216.34,6.2223]
[1731782939621,8.1103257,216.39,216.34,6.2223]
[1731782940210,4.6206,216.42,216.35,8.1103257]
[1731782940421,12.7309257,216.42,216.35,8.1103257]
[1731782940627,8.1103257,216.4,216.34,22.4003]
[1731782940920,8.1103257,216.41,216.34,22.4003]
[1731782941098,8.1103257,216.4,216.34,22.4003]
[1731782941299,4.6206,216.42,216.34,17.7781]
[1731782941300,8.1103257,216.39,216.34,17.7781]
[1731782942032,8.1103257,216.36,216.31,4.6228]
[1731782942212,8.1103257,216.33,216.29,18.0277]
[1731782943329,8.1103257,216.33,216.29,22.6511]
[1731782943638,8.1103257,216.35,216.29,22.6511]
[1731782946009,12.7324257,216.35,216.29,22.6511]
[1731782946343,8.1103257,216.34,216.29,22.6511]
[1731782947834,8.1103257,216.35,216.29,22.6511]
[1731782948636,8.1103257,216.36,216.29,22.6511]
[1731782948944,8.1103257,216.37,216.29,22.6511]
[1731782949108,12.7319257,216.38,216.3,8.1103257]
[1731782950124,12.7319257,216.38,216.31,4.6229]
[1731782950518,4.6204,216.43,216.32,8.1103257]
[1731782950715,8.1103257,216.4,216.32,8.1103257]
[1731782951826,8.1103257,216.39,216.31,24.2906257]
[1731782952027,4.6206,216.42,216.31,16.1803]
[1731782952236,8.1103257,216.4,216.32,8.1103257]
[1731782952938,8.1103257,216.4,216.33,4.6225]
[1731782953646,12.7313257,216.4,216.33,4.6225]
[1731782954944,8.1103257,216.38,216.31,11.5574]
[1731782955145,8.1103257,216.36,216.31,11.5574]
[1731782955739,4.621,216.4,216.31,11.5574]
[1731782956049,8.1103257,216.38,216.31,11.5574]
[1731782956350,8.1103257,216.38,216.31,16.1803]
[1731782961039,4.6213,216.39,216.32,8.1103257]
[1731782961544,4.6213,216.39,216.32,12.7329257]
[1731782962056,160.9,216.42,216.33,8.1103257]
[1731782962339,173.6309257,216.42,216.36,6.5658]
[1731782962549,12.7309257,216.42,216.36,6.5658]
[1731782965142,8.1103257,216.45,216.37,8.1103257]
[1731782965351,4.6197,216.46,216.39,8.1103257]
[1731782966047,8.1103257,216.47,216.39,8.1103257]